fUST/lending_fUST_20251029
["ID","MTS","AMOUNT","RATE_DAILY","PERIOD"]
[392560806,1761667376221,5000.0,0.00017558,2]
[392560807,1761667392090,1382.73087162,0.00017558,2]
[392560808,1761667392113,3617.26912838,0.00017558,2]
[392560809,1761667413534,5000.0,0.00017558,2]
[392560848,1761667419798,1382.74087162,0.00017454,2]
[392560849,1761667419821,352.52330007,0.00017454,2]
[392560926,1761667429511,5000.0,0.00017558,2]
[392561147,1761667445336,4647.48669993,0.00017558,2]
[392561149,1761667445359,5352.51330007,0.00017558,2]
[392561208,1761667462347,1416.24,0.00017558,2]
[392561222,1761667469433,744.20036936,0.00017489,2]
[392561565,1761667525161,199999.999999,0.00033621,60]
[392561598,1761667531439,1000.0,0.00016599,2]
[392561600,1761667532857,9000.01,0.00017489,2]
[392561601,1761667532882,10000.01,0.00017489,2]
[392561602,1761667532906,10000.01,0.00017489,2]
[392561603,1761667532930,219.4455671,0.00017489,2]
[392561741,1761667564922,188.93125599,0.00017193,2]
[392562199,1761667606641,-1322.44,0.00017567,3]
[392562200,1761667606668,-661.22,0.00017567,3]
[392562201,1761667606694,-330.61,0.00017567,3]
[392562202,1761667606719,-165.3,0.00017567,3]
[392562203,1761667606745,-495.94,0.00017567,3]
[392562204,1761667606772,-300.0,0.00017575,2]
[392562205,1761667606799,-451.0,0.00017575,2]
[392562206,1761667606827,-243.86961883,0.00017576,2]
[392562207,1761667606853,-360.81660648,0.00017576,2]
[392562208,1761667606881,-500.0,0.00017576,2]
[392562209,1761667606908,-500.0,0.00017576,2]
[392562210,1761667606936,-500.0,0.00017576,2]
[392562211,1761667606963,-500.0,0.00017576,2]
[392562212,1761667607250,-500.0,0.00017576,2]
[392562213,1761667607296,-500.0,0.00017576,2]
[392562214,1761667607323,-500.0,0.00017576,2]
[392562215,1761667607350,-500.0,0.00017576,2]
[392562216,1761667607374,-500.0,0.00017576,2]
[392562217,1761667607401,-500.0,0.00017576,2]
[392562218,1761667607428,-500.0,0.00017576,2]
[392562219,1761667607453,-500.0,0.00017576,2]
[392562220,1761667607479,-500.0,0.00017576,2]
[392562221,1761667607506,-500.0,0.00017576,2]
[392562222,1761667607534,-500.0,0.00017576,2]
[392562223,1761667607562,-500.0,0.00017576,2]
[392562224,1761667607589,-500.0,0.00017576,2]
[392562225,1761667607617,-500.0,0.00017576,2]
[392562226,1761667607644,-500.0,0.00017576,2]
[392562227,1761667607669,-500.0,0.00017576,2]
[392562228,1761667607696,-500.0,0.00017576,2]
[392562229,1761667607722,-500.0,0.00017576,2]
[392562230,1761667607749,-500.0,0.00017576,2]
[392562231,1761667607777,-500.0,0.00017576,2]
[392562232,1761667607804,-429.29020018,0.00017576,2]
[392562233,1761667607834,-273.19682953,0.00017576,2]
[392562234,1761667607861,-500.0,0.00017576,2]
[392562235,1761667607888,-500.0,0.00017576,2]
[392562236,1761667607916,-500.0,0.00017576,2]
[392562237,1761667607943,-500.0,0.00017576,2]
[392562238,1761667607972,-352.22811352,0.00017576,2]
[392562239,1761667608001,-500.0,0.00017576,2]
[392562240,1761667608030,-500.0,0.00017576,2]
[392562241,1761667608059,-500.0,0.00017576,2]
[392562242,1761667608086,-105.75180837,0.00017576,2]
[392562285,1761667652778,558.41341132,0.0001749,2]
[392562286,1761667670877,1245.06835416,0.00017524,2]
[392562287,1761667683824,283.67,0.00016244,2]
[392562289,1761667793560,10000.01,0.00017484,2]
[392562290,1761667793585,9970.00091094,0.00017484,2]
[392562291,1761667813265,30.00908906,0.00017472,2]
[392562292,1761667813566,128.22144823,0.00017472,2]
[392562293,1761667813682,158.23053729,0.00017476,2]
[392562323,1761667831930,-151.0,0.00017566,2]
[392562325,1761667831939,-1000.0,0.00017566,2]
[392562327,1761667831949,-1000.0,0.00017566,2]
[392562329,1761667831958,-151.0,0.00017566,2]
[392562330,1761667831968,-1000.0,0.00017566,2]
[392562331,1761667831977,-151.0,0.00017566,2]
[392562333,1761667831986,-645.80000001,0.00017566,2]
[392562334,1761667831997,-354.19999999,0.00017566,2]
[392562335,1761667832007,-500.0,0.00017566,2]
[392562336,1761667832016,-151.0,0.00017566,2]
[392562337,1761667832025,-250.0,0.00017566,2]
[392562338,1761667832034,-442.80339511,0.00017566,2]
[392562339,1761667832060,-557.19660489,0.00017566,2]
[392562340,1761667832069,-153.81699132,0.00017566,2]
[392562341,1761667832078,-250.0,0.00017566,2]
[392562342,1761667832088,-1000.0,0.00017566,2]
[392562344,1761667832097,-740.10913317,0.00017566,2]
[392562346,1761667832107,-250.0,0.00017566,2]
[392562347,1761667832116,-250.0,0.00017566,2]
[392562348,1761667832125,-500.0,0.00017566,2]
[392562349,1761667832134,-250.0,0.00017566,2]
[392562351,1761667832144,-500.0,0.00017566,2]
[392562353,1761667832153,-250.0,0.00017566,2]
[392562355,1761667832162,-500.0,0.00017566,2]
[392562357,1761667832172,-250.0,0.00017566,2]
[392562358,1761667832181,-500.0,0.00017566,2]
[392562360,1761667832191,-250.0,0.00017566,2]
[392562363,1761667832201,-333.84196909,0.00017566,2]
[392562365,1761667832210,-250.0,0.00017566,2]
[392562367,1761667832219,-250.0,0.00017566,2]
[392562368,1761667832229,-389.92850089,0.00017566,2]
[392562370,1761667832238,-213.99195881,0.00017566,2]
[392562372,1761667832248,-151.0,0.00017566,2]
[392562374,1761667832257,-151.0,0.00017566,2]
[392562376,1761667832266,-151.0,0.00017566,2]
[392562378,1761667832275,-151.0,0.00017566,2]
[392562379,1761667832285,-151.0,0.00017566,2]
[392562380,1761667832296,-151.0,0.00017566,2]
[392562381,1761667832306,-151.0,0.00017566,2]
[392562382,1761667832315,-151.0,0.00017566,2]
[392562383,1761667832324,-151.0,0.00017566,2]
[392562384,1761667832334,-558.41341132,0.00017568,2]
[392562385,1761667832343,-317.1985079,0.00017572,2]
[392562386,1761667832354,-394.24819163,0.00017576,2]
[392562387,1761667832364,-500.0,0.00017576,2]
[392562388,1761667832374,-500.0,0.00017576,2]
[392562389,1761667832384,-500.0,0.00017576,2]
[392562390,1761667832393,-330.0,0.00017576,2]
[392562391,1761667832403,-300.0,0.00017576,2]
[392562392,1761667832413,-74463.81354156,0.00017577,2]
[392562410,1761667837824,-151.0,0.00017566,2]
[392562411,1761667837844,-151.0,0.00017566,2]
[392562412,1761667837854,-74.19784937,0.00017566,2]
[392562413,1761667837865,-76.80215063,0.00017566,2]
[392562414,1761667837874,-151.0,0.00017566,2]
[392562415,1761667837884,-151.0,0.00017566,2]
[392562416,1761667837893,-151.0,0.00017566,2]
[392562417,1761667837902,-137.28105136,0.00017566,2]
[392562418,1761667837913,-13.71894864,0.00017566,2]
[392562419,1761667837922,-153.86181267,0.00017566,2]
[392562420,1761667837932,-1964.8322834,0.00017577,2]
[392562421,1761667837943,-4510.39385031,0.00017577,2]
[392562422,1761667837954,-7458.58540493,0.00017577,2]
[392562423,1761667837965,-1702.15,0.00017577,2]
[392562432,1761667840005,-310.1583019,0.00017577,2]
[392562460,1761667842930,-544.3,0.00017577,2]
[392562470,1761667843013,-55193.25528135,0.00017577,2]
[392562503,1761667846563,-10853.65179547,0.00017577,2]
[392562504,1761667846574,-1614.3731411,0.00017577,2]
[392562505,1761667846585,-11820.6111866,0.00017577,2]
[392562506,1761667852563,316.46107458,0.00017477,2]
[392562507,1761667889432,158.23053729,0.00017477,2]
[392562508,1761667901743,824.47093,0.00013699,2]
[392562511,1761667910770,395.49517207,0.00017477,2]
[392562556,1761667984712,834.67942586,0.00017477,2]
[392562557,1761667992823,547.11960005,0.00017477,2]
[392562558,1761668087943,168.0,0.00017435,2]
[392562560,1761668165154,161.43634374,0.00017209,2]
[392562561,1761668282962,1513.0,0.00017535,2]
[392562562,1761668298603,168.0,0.00017467,2]
[392562563,1761668301648,220.588312,0.00016576,2]
[392562564,1761668306238,168.0,0.00017383,2]
[392562565,1761668312696,168.0,0.00017411,2]
[392562566,1761668316831,168.0,0.0001733,2]
[392562567,1761668320036,168.0,0.00017338,2]
[392562568,1761668336869,437.69568004,0.00017477,2]
[392562569,1761668356838,1245.06835416,0.0001749,2]
[392562570,1761668357455,1906.69078722,0.00017305,2]
[392562571,1761668367495,172.44611117,0.00016814,2]
[392562578,1761668661356,258.62767182,0.00017476,2]
[392562579,1761668661380,471.71682579,0.00017476,2]
[392562580,1761668679271,350.15654404,0.00017476,2]
[392562581,1761668681250,350.156544,0.00017476,2]
[392562582,1761668683240,350.156544,0.00017477,2]
[392562583,1761668685223,350.156544,0.00017477,2]
[392562584,1761668700976,-350.156544,0.00017477,2]
[392562588,1761668743083,168.0,0.00016969,2]
[392562590,1761668759321,9832.01,0.00017477,2]
[392562591,1761668759349,10000.01,0.00017477,2]
[392562592,1761668759376,10000.01,0.00017477,2]
[392562593,1761668759403,10000.01,0.00017477,2]
[392562594,1761668759430,10000.01,0.00017477,2]
[392562595,1761668759456,10000.01,0.00017477,2]
[392562596,1761668759484,10000.01,0.00017477,2]
[392562597,1761668759511,10000.01,0.00017477,2]
[392562598,1761668767411,-2490.17965803,0.00017302,2]
[392562599,1761668767442,-826.52,0.00017467,3]
[392562600,1761668767472,-300.0,0.00017476,2]
[392562601,1761668768651,-894.26768211,0.00017477,2]
[392562602,1761668768725,-10000.01,0.00017477,2]
[392562603,1761668768845,-10000.01,0.00017477,2]
[392562604,1761668770222,-10000.01,0.00017477,2]
[392562605,1761668770392,-10000.01,0.00017477,2]
[392562606,1761668770562,-10000.01,0.00017477,2]
[392562607,1761668770857,-10000.01,0.00017477,2]
[392562608,1761668770924,-10000.01,0.00017477,2]
[392562609,1761668771082,-10000.01,0.00017477,2]
[392562610,1761668771250,-10000.01,0.00017477,2]
[392562611,1761668773150,-10000.01,0.00017477,2]
[392562612,1761668773543,-10000.01,0.00017477,2]
[392562613,1761668776380,-10000.01,0.00017477,2]
[392562614,1761668776719,-413.26,0.00017467,3]
[392562615,1761668776761,-9173.49,0.00017477,2]
[392562616,1761668781226,-10000.01,0.00017477,2]
[392562617,1761668781599,-10000.01,0.00017477,2]
[392562618,1761668781873,-10000.01,0.00017477,2]
[392562619,1761668781991,-10000.01,0.00017477,2]
[392562620,1761668782177,-10000.01,0.00017477,2]
[392562622,1761668782347,-10000.01,0.00017477,2]
[392562624,1761668785217,-10000.01,0.00017477,2]
[392562626,1761668794450,-225.05470032,0.00017476,2]
[392562627,1761668794479,-543.14281061,0.00017476,2]
[392562628,1761668794511,-500.0,0.00017476,2]
[392562629,1761668794540,-500.0,0.00017476,2]
[392562630,1761668794568,-500.0,0.00017476,2]
[392562631,1761668794596,-576.05778741,0.00017476,2]
[392562632,1761668794624,-500.0,0.00017476,2]
[392562633,1761668794655,-500.0,0.00017476,2]
[392562634,1761668794686,-500.0,0.00017476,2]
[392562635,1761668794716,-500.0,0.00017476,2]
[392562636,1761668794967,-413.73146523,0.00017476,2]
[392562637,1761668794998,-500.0,0.00017476,2]
[392562638,1761668795031,-530.35520328,0.00017476,2]
[392562639,1761668795063,-428.02534595,0.00017476,2]
[392562640,1761668795093,-299.90578896,0.00017476,2]
[392562641,1761668795122,-500.0,0.00017476,2]
[392562642,1761668795151,-446.83010882,0.00017476,2]
[392562643,1761668795180,-500.0,0.00017476,2]
[392562644,1761668795487,-353.07568014,0.00017477,2]
[392562645,1761668795515,-2762.31417552,0.00017477,2]
[392562646,1761668795536,-10000.01,0.00017477,2]
[392562647,1761668795570,-10000.01,0.00017477,2]
[392562648,1761668795589,-10000.01,0.00017477,2]
[392562649,1761668795613,-10000.01,0.00017477,2]
[392562650,1761668795647,-10000.01,0.00017477,2]
[392562651,1761668795789,-10000.01,0.00017477,2]
[392562652,1761668800301,-10000.01,0.00017477,2]
[392562653,1761668800626,-10000.01,0.00017477,2]
[392562654,1761668809492,-3015.50753777,0.00017477,2]
[392562655,1761668809536,-3968.99492446,0.00017477,2]
[392562656,1761668809919,-1007.75392168,0.00017477,2]
[392562657,1761668811911,5000.0,0.00017302,2]
[392562661,1761668819401,235.01662376,0.00017476,2]
[392562662,1761668819872,2749.48553288,0.00017477,2]
[392562663,1761668819897,2250.51446712,0.00017477,2]
[392562664,1761668821693,500.0,0.00017476,2]
[392562665,1761668821763,500.0,0.00017476,2]
[392562666,1761668821793,500.0,0.00017476,2]
[392562667,1761668821821,500.0,0.00017476,2]
[392562668,1761668821867,500.0,0.00017476,2]
[392562669,1761668821898,500.0,0.00017476,2]
[392562670,1761668821930,500.0,0.00017476,2]
[392562671,1761668821959,398.59896619,0.00017476,2]
[392562672,1761668821991,500.0,0.00017476,2]
[392562673,1761668822037,300.0,0.00017476,2]
[392562674,1761668822067,500.0,0.00017476,2]
[392562676,1761668825911,1833.74476605,0.00017441,2]
[392562686,1761668827357,255.55882831,0.00017476,2]
[392562687,1761668828162,461.59297233,0.00017477,2]
[392562688,1761668828186,4538.40702767,0.00017477,2]
[392562689,1761668831882,500.0,0.00017476,2]
[392562690,1761668831916,500.0,0.00017476,2]
[392562691,1761668831954,500.0,0.00017476,2]
[392562692,1761668831988,500.0,0.00017476,2]
[392562693,1761668832033,500.0,0.00017476,2]
[392562694,1761668832065,486.41064282,0.00017476,2]
[392562695,1761668832108,254.34817036,0.00017476,2]
[392562710,1761668836123,2220.84415915,0.00017477,2]
[392562711,1761668836150,2779.15584085,0.00017477,2]
[392562712,1761668838967,500.0,0.00017476,2]
[392562713,1761668839021,500.0,0.00017476,2]
[392562714,1761668839076,500.0,0.00017476,2]
[392562715,1761668839180,500.0,0.00017476,2]
[392562716,1761668839216,582.61928456,0.00017476,2]
[392562872,1761668844789,5000.0,0.00017366,2]
[392562922,1761668853634,807.23116802,0.00017499,2]
[392562923,1761668855156,-196.01504407,0.00017499,2]
[392562924,1761668858644,-279.55148399,0.00017499,2]
[392562925,1761668859328,1200.0,0.00017498,2]
[392562926,1761668859600,2990.0783303,0.00016565,2]
[392562927,1761668860146,-172.86482475,0.00017499,2]
[392562928,1761668862272,-300.00755298,0.00017499,2]
[392562929,1761668862482,2.70050168,0.00017499,2]
[392562931,1761668870338,5000.0,0.00017448,2]
[392562936,1761668882667,168.90696768,0.00017201,2]
[392562937,1761668893846,4831.10303232,0.00017448,2]
[392562938,1761668893871,168.89696768,0.00017448,2]
[392562940,1761668911752,9831.11303232,0.00017,2]
[392562941,1761668911775,168.89696768,0.00017,2]
[392562943,1761668912620,-163.80914868,0.00017466,2]
[392562945,1761668915948,589.37582734,0.000149,2]
[392562946,1761668915986,5000.0,0.00017448,2]
[392562947,1761668916292,1000.0,0.0001,2]
[392562949,1761668938817,720.68049104,0.00017448,2]
[392562954,1761668962284,168.0,0.00017194,2]
[392562955,1761668965613,168.0,0.0001725,2]
[392562956,1761669010309,-179.06,0.00017464,2]
[392562957,1761669010335,-179.06,0.00017464,2]
[392562958,1761669010358,-12.01664993,0.00017466,2]
[392562959,1761669010381,-123.84492423,0.00017473,2]
[392562960,1761669011565,175.54377392,0.00017377,2]
[392562961,1761669012805,-167.93959279,0.00017473,2]
[392562962,1761669014837,-8.21548298,0.00017473,2]
[392562963,1761669014861,-210.29457433,0.00017473,2]
[392562964,1761669018078,-89.70542567,0.00017473,2]
[392562965,1761669018103,-120.5842768,0.00017473,2]
[392562966,1761669020317,-179.4157232,0.00017473,2]
[392562967,1761669020339,-44.20496086,0.00017473,2]
[392562968,1761669023436,-255.79503914,0.00017473,2]
[392562969,1761669023459,-190.16394703,0.00017473,2]
[392562985,1761669032052,-380.19996742,0.00017473,2]
[392562986,1761669032061,-157.53829022,0.00017473,2]
[392562987,1761669032071,-109.83605297,0.00017473,2]
[392562989,1761669032086,-316.73781363,0.00017473,2]
[392562991,1761669032095,-515.68790076,0.00017474,2]
[392562993,1761669032106,-6761.03814449,0.00017474,2]
[392562997,1761669032133,-921.96033283,0.00017474,2]
[392563002,1761669032171,-361801.31362192,0.00017474,2]
[392563004,1761669032181,-175.54377392,0.00017475,2]
[392563006,1761669032192,-3328.7593103,0.00017477,2]
[392563007,1761669032201,-11711.58055893,0.00017477,2]
[392563048,1761669037817,-165.15673809,0.00017473,2]
[392563049,1761669037827,-376.04283587,0.00017473,2]
[392563050,1761669037838,-217.89372802,0.00017473,2]
[392563051,1761669037849,-65.09813017,0.00017473,2]
[392563052,1761669037861,-129.82944431,0.00017473,2]
[392563053,1761669037871,-399.98953211,0.00017473,2]
[392563054,1761669037880,-7940.92737277,0.00017477,2]
[392563055,1761669037890,-4997.29949832,0.00017499,2]
[392563056,1761669037899,-17437.12890926,0.00017499,2]
[392563057,1761669037908,-168.0,0.00017541,2]
[392563058,1761669037918,-180.29407517,0.00017546,2]
[392563059,1761669037927,-500.0,0.00017563,2]
[392563060,1761669037936,-1000.0,0.00017563,2]
[392563061,1761669037946,-1000.0,0.00017563,2]
[392563062,1761669037956,-1000.0,0.00017563,2]
[392563063,1761669037965,-1000.0,0.00017563,2]
[392563064,1761669037974,-1000.0,0.00017563,2]
[392563065,1761669037983,-1000.0,0.00017563,2]
[392563066,1761669037992,-1000.0,0.00017563,2]
[392563067,1761669038002,-1000.0,0.00017563,2]
[392563068,1761669038012,-528.36822218,0.00017563,2]
[392563069,1761669038022,-206.63,0.00017564,3]
[392563070,1761669038031,-206.63,0.00017564,3]
[392563071,1761669038041,-349.72,0.00017564,3]
[392563072,1761669038050,-500.0,0.00017573,2]
[392563073,1761669038060,-878.97,0.00017573,2]
[392563074,1761669038069,-878.97,0.00017573,2]
[392563075,1761669038080,-878.97,0.00017573,2]
[392563076,1761669038093,-878.97,0.00017573,2]
[392563077,1761669038102,-878.97,0.00017573,2]
[392563078,1761669038111,-878.97,0.00017573,2]
[392563079,1761669038122,-878.97,0.00017573,2]
[392563080,1761669038132,-878.97,0.00017573,2]
[392563081,1761669038142,-878.97,0.00017573,2]
[392563082,1761669038152,-878.97,0.00017573,2]
[392563083,1761669038163,-878.97,0.00017573,2]
[392563084,1761669038173,-878.97,0.00017573,2]
[392563085,1761669038184,-907.54294588,0.00017574,2]
[392563086,1761669038195,-334.6170013,0.00017574,2]
[392563122,1761669040563,-3e-08,0.00017574,2]
[392563123,1761669040583,-10031.33631149,0.00017574,2]
[392563128,1761669042760,2009.51294002,0.00017448,2]
[392563129,1761669042785,2990.48705998,0.00017448,2]
[392563131,1761669043235,-675.14,0.00017574,2]
[392563171,1761669045266,959.25935587,0.00017133,2]
[392563212,1761669046169,-875.07290591,0.00017574,2]
[392563214,1761669046186,-3569.63487616,0.00017574,2]
[392563232,1761669066230,5000.0,0.00017448,2]
[392563233,1761669089214,1050.26358415,0.00017448,2]
[392563234,1761669094870,-262.13824562,0.00017448,2]
[392563235,1761669097534,-281.71650713,0.00017448,2]
[392563238,1761669102690,-248.44704835,0.00017448,2]
[392563239,1761669105823,-487.66289948,0.00017448,2]
[392563240,1761669107460,-300.63224212,0.00017448,2]
[392563241,1761669108888,-186.0125625,0.00017448,2]
[392563243,1761669165617,168.0,0.00017046,2]
[392563244,1761669169227,168.0,0.00016986,2]
[392563245,1761669176653,1007.24808879,0.00017398,2]
[392563246,1761669273277,1245.06835416,0.00017409,2]
[392563247,1761669285199,5000.0,0.00017433,2]
[392563248,1761669307957,2411.69355705,0.00017433,2]
[392563249,1761669307980,2588.30644295,0.00017433,2]
[392563250,1761669330685,5000.0,0.00017433,2]
[392563251,1761669353439,2411.70355705,0.00017433,2]
[392563252,1761669353463,2588.29644295,0.00017433,2]
[392563253,1761669377759,5000.0,0.00017433,2]
[392563254,1761669393224,2035.71626236,0.00017421,2]
[392563255,1761669400403,375.99729469,0.00017433,2]
[392563256,1761669400426,4200.56873536,0.00017433,2]
[392563258,1761669456924,881.3420777,0.00017376,2]
[392563259,1761669484346,258.98,0.00016983,2]
[392563260,1761669524410,981.1,0.000174,2]
[392563261,1761669566030,155.86224221,0.00033602,120]
[392563262,1761669649815,484.07311045,0.00017265,2]
[392563263,1761669742484,771.17431797,0.00017372,2]
[392563265,1761669765835,1245.06835416,0.00017418,2]
[392563266,1761669795227,477.97927398,0.00016797,2]
[392563267,1761669797031,1911.91709594,0.00017033,2]
[392563268,1761669798767,4297.51165239,0.00017268,2]
[392563269,1761669802442,-551.01,0.00017464,3]
[392563270,1761669802470,-275.5,0.00017464,3]
[392563271,1761669802498,-826.55,0.00017464,3]
[392563272,1761669802524,-310.40305736,0.00017468,2]
[392563273,1761669802550,-1200.0,0.0001747,2]
[392563274,1761669802578,-300.0,0.0001747,2]
[392563275,1761669802605,-300.0,0.00017471,2]
[392563276,1761669802633,-300.0,0.00017471,2]
[392563277,1761669802660,-673.08388528,0.00017471,2]
[392563278,1761669808521,-526.91611472,0.00017471,2]
[392563279,1761669808549,-300.0,0.00017471,2]
[392563280,1761669808578,-300.0,0.00017471,2]
[392563281,1761669808606,-337.20201363,0.00017471,2]
[392563282,1761669818404,5000.0,0.000174,2]
[392563283,1761669826261,5000.0,0.000174,2]
[392563284,1761669842365,0.01,0.000174,2]
[392563285,1761669842390,3347.4669714,0.000174,2]
[392563286,1761669943947,741.50197134,0.00016697,2]
[392563287,1761669957481,358.67,0.00033602,60]
[392563298,1761670022720,674.77752825,0.00017373,2]
[392563300,1761670162789,286.653239,0.00016472,2]
[392563385,1761670232293,-275.5,0.00017462,3]
[392563387,1761670232303,-826.52,0.00017462,3]
[392563389,1761670232314,-304.19499622,0.00017467,2]
[392563391,1761670232323,-298.96073377,0.0001747,2]
[392563393,1761670232335,-1.03926623,0.0001747,2]
[392563395,1761670232344,-500.0,0.00017471,2]
[392563397,1761670232353,-500.0,0.00017471,2]
[392563399,1761670232363,-386.51695021,0.00017471,2]
[392563401,1761670232373,-1200.0,0.00017471,2]
[392563403,1761670232382,-11900.55294536,0.00017472,2]
[392563406,1761670232403,-500.0,0.00017472,2]
[392563484,1761670238101,-251.93979888,0.00017471,2]
[392563486,1761670238113,-248.06020112,0.00017471,2]
[392563488,1761670238122,-399.26318608,0.00017471,2]
[392563490,1761670238135,-100.73681392,0.00017471,2]
[392563492,1761670238146,-377.26318608,0.00017471,2]
[392563496,1761670238176,-122.73681392,0.00017471,2]
[392563498,1761670238186,-500.0,0.00017471,2]
[392563500,1761670238196,-500.0,0.00017471,2]
[392563502,1761670238208,-196.1770551,0.00017471,2]
[392563561,1761670240284,-164.01312561,0.00017471,2]
[392563563,1761670240423,-139.80981929,0.00017471,2]
[392563564,1761670240433,-360.19018071,0.00017471,2]
[392563565,1761670242399,-139.80981929,0.00017471,2]
[392563566,1761670242420,-136.17912479,0.00017471,2]
[392563586,1761670243268,-344.8474044,0.00017471,2]
[392563592,1761670243322,-18.97347081,0.00017471,2]
[392563594,1761670243332,-500.0,0.00017471,2]
[392563596,1761670243341,-500.0,0.00017471,2]
[392563598,1761670243350,-500.0,0.00017471,2]
[392563600,1761670243359,-891.02415202,0.00017472,2]
[392563601,1761670244508,-204.63641201,0.00017472,2]
[392563612,1761670246318,-356.32752106,0.00017472,2]
[392563613,1761670246330,-2943.24450196,0.00017472,2]
[392563615,1761670247050,-7379.41174361,0.00017472,2]
[392563616,1761670275722,1245.06835416,0.00017328,2]
[392563620,1761670396747,2035.71626236,0.00017305,2]
[392563621,1761670458487,5016.29264489,0.00017372,2]
[392563622,1761670458514,10000.01,0.00017372,2]
[392563623,1761670458537,10000.01,0.00017372,2]
[392563624,1761670458561,10000.01,0.00017372,2]
[392563625,1761670458584,10000.01,0.00017372,2]
[392563626,1761670458610,10000.01,0.00017372,2]
[392563627,1761670458632,10000.01,0.00017372,2]
[392563628,1761670458654,10000.01,0.00017372,2]
[392563629,1761670458677,10000.01,0.00017372,2]
[392563630,1761670458701,10000.01,0.00017372,2]
[392563631,1761670461625,-256.87658516,0.00017372,2]
[392563632,1761670464792,-300.0,0.00017372,2]
[392563633,1761670466821,-300.0,0.00017372,2]
[392563634,1761670468976,-300.0,0.00017372,2]
[392563635,1761670470430,-300.0,0.00017372,2]
[392563636,1761670471985,236.04140954,0.00017371,2]
[392563637,1761670502850,300.0,0.00017371,2]
[392563638,1761670502987,300.0,0.00017371,2]
[392563639,1761670504509,300.0,0.00017371,2]
[392563640,1761670518733,151.0,0.000173,2]
[392563641,1761670519038,151.0,0.000164,2]
[392563642,1761670519363,151.0,0.000155,2]
[392563643,1761670565046,300.0,0.00017371,2]
[392563644,1761670622893,300.0,0.00017371,2]
[392563647,1761670660665,1003.0,0.00017371,2]
[392563648,1761670683351,300.0,0.00017371,2]
[392563649,1761670742833,300.0,0.00017371,2]
[392563650,1761670770951,6207.96859046,0.0001737,2]
[392563651,1761670770978,10000.01,0.0001737,2]
[392563652,1761670771011,10000.01,0.0001737,2]
[392563653,1761670771040,10000.01,0.0001737,2]
[392563654,1761670771069,10000.01,0.0001737,2]
[392563655,1761670771096,10000.01,0.0001737,2]
[392563656,1761670771121,10000.01,0.0001737,2]
[392563657,1761670771151,10000.01,0.0001737,2]
[392563658,1761670771177,10000.01,0.0001737,2]
[392563659,1761670771204,10000.01,0.0001737,2]
[392563660,1761670778801,-3139.84118402,0.0001737,2]
[392563661,1761670778902,-10000.01,0.0001737,2]
[392563662,1761670779396,-10000.01,0.0001737,2]
[392563663,1761670779641,-10000.01,0.0001737,2]
[392563664,1761670779804,-10000.01,0.0001737,2]
[392563665,1761670779969,-10000.01,0.0001737,2]
[392563666,1761670780147,-10000.01,0.0001737,2]
[392563667,1761670780424,-10000.01,0.0001737,2]
[392563668,1761670783623,-10000.01,0.0001737,2]
[392563669,1761670783786,-10000.01,0.0001737,2]
[392563670,1761670783927,-10000.01,0.0001737,2]
[392563671,1761670784108,-4855.45890873,0.0001737,2]
[392563672,1761670784147,-289.09218254,0.00017372,2]
[392563673,1761670784270,-10000.01,0.00017372,2]
[392563674,1761670784460,-10000.01,0.00017372,2]